Cogmind - Beta 9 @@@ ROGUE MODE // 2019.10.23 @ 18:55:30 Player: Laverne & Shelly Result: Smashed by cave-in Performance ------------- Evolutions (1) 500 Regions Visited (4) 800 Robots Destroyed (76) 380 Value Destroyed (2155) 2155 Prototype IDs (6) 120 Alien Tech Used (0) 0 Bonus (71) 71 TOTAL SCORE: 4026 Bonus ------- High Alert Combat Kills 71 Cogmind --------- Core Integrity 0/400 Matter 259/300 Energy 150/265 System Corruption 4% Temperature Cool (71) Location -9/Storage Parts ------- Power (2) Improved Ion Engine Propulsion (3) Aluminum Leg Aluminum Leg Aluminum Leg Utility (2) Large Storage Unit Weapon (2) Improved Heavy Laser Inventory (10) Light Treads Light Treads Structural Scanner Hardened Light Armor Plating Light Cannon EMP Blaster EMP Blaster Grenade Launcher Peak State ------------ Power Improved Ion Engine Reinforced Ion Engine Propulsion Aluminum Leg Aluminum Leg Aluminum Leg Utility Large Storage Unit Hacking Suite Weapon Guided EMP Blaster Inventory Light Ion Engine Light Treads Light Treads Structural Scanner Improved Terrain Scanner Light Cannon EMP Blaster EMP Blaster Grenade Launcher [Rating: 24] Favorites ----------- Power Light Ion Engine Engine Light Ion Engine Propulsion Aluminum Leg Leg Aluminum Leg Utility Small Storage Unit Storage Small Storage Unit Hackware Hacking Suite Weapon EM Pulse Gun Energy Gun EM Pulse Gun Energy Cannon Ion Burst Cannon Ballistic Gun Shotgun Ballistic Cannon Light Cannon Launcher Grenade Launcher Build | -11 -10 -10 -9 -9 ------- Run | Scr Mat Min Mat Sto Slots Evolved 2 | . . . 2 . Power 1 | . . . 1 . Propulsion 1 | . . . 1 . Utility . | . . . . . Weapon . | . . . . . Parts Attached 53 | 6 8 5 13 21 Power 11 | 1 1 . 4 5 Engine 11 | 1 1 . 4 5 Core . | . . . . . Reactor . | . . . . . Propulsion 11 | 2 . 2 3 4 Treads . | . . . . . Leg 11 | 2 . 2 3 4 Wheel . | . . . . . Hover . | . . . . . Flight . | . . . . . Utility 4 | 1 2 . . 1 Device . | . . . . . Storage 3 | 1 2 . . . Processor . | . . . . . Hackware 1 | . . . . 1 Protection . | . . . . . Artifact . | . . . . . Weapon 27 | 2 5 3 6 11 Energy Gun 11 | 2 2 1 2 4 Energy Cannon 1 | . . . . 1 Ballistic Gun 6 | . . 2 2 2 Ballistic Cannon 2 | . 1 . . 1 Launcher 7 | . 2 . 2 3 Special Weapon . | . . . . . Impact Weapon . | . . . . . Slashing Weapon . | . . . . . Piercing Weapon . | . . . . . Special Melee Weapon . | . . . . . Unidentified Prototypes 3 | . . . . 3 Parts Lost 22 | . 2 . 8 12 Power 7 | . . . 4 3 Propulsion 6 | . . . 2 4 Utility 2 | . 1 . . 1 Weapon 7 | . 1 . 2 4 Highest Loss Streak 5 | . 2 . 4 5 Average Slot Usage (%) 93 | . 98 100 90 85 Engine 16 | . 14 14 18 19 Leg 27 | . 28 28 27 26 Storage 24 | . 27 28 22 19 Energy Gun 10 | . 15 13 9 3 Ballistic Gun 4 | . . 12 5 4 Launcher 7 | . 11 1 7 6 Naked Turns . | . . . . . Heaviest Build 47 | 11 29 29 32 47 Greatest Support 30 | 20 20 20 30 30 Greatest Overweight (x) 13 | 2 1 1 3 13 Average Overweight (x) 1 | . . 1 1 1 Largest Inventory Capacity 12 | 6 12 12 12 12 Average Capacity 11 | 5 10 12 12 11 Most Carried 12 | 4 12 12 12 12 Average Carried 10 | 1 10 11 10 11 Final Capacity 10 | . . . . 10 Final Carried 8 | . . . . 8 Class Distribution -------------------- 79% | Mutant 20% | Scavenger-Mutant Dominant Class ---------------- Mutant | -10/Materials Mutant | -10/Mines Mutant | -9/Materials Scavenger-Mutant | -9/Storage Resources | -11 -10 -10 -9 -9 ----------- Run | Scr Mat Min Mat Sto Matter Collected 1599 | 230 260 114 300 695 Remotely . | . . . . . Salvage Created 2080 | . 331 172 605 972 Parts 144 | . 35 8 42 59 Haulers Intercepted 1 | . . . 1 . Recyclers Shooed . | . . . . . Parts Field Recycled . | . . . . . Retrieved Matter . | . . . . . Parts Self-Destructed . | . . . . . Prevented . | . . . . . Kills | -11 -10 -10 -9 -9 ------- Run | Scr Mat Min Mat Sto Combat Hostiles Destroyed 50 | . 9 5 16 20 Guns 17 | . 2 5 5 5 Cannons 6 | . . . . 6 AOE 27 | . 7 . 11 9 Classes Destroyed 12 | . 6 . 4 2 Worker 3 | . . . . 3 Builder 9 | . 1 . 5 3 Tunneler 2 | . 1 . 1 . Hauler 1 | . . . 1 . Recycler 2 | . . . 2 . Operator 3 | . 3 . . . Watcher 6 | . 3 . 2 1 Swarmer 4 | . 3 1 . . Grunt 32 | . 6 4 13 9 Brawler 1 | . . . . 1 Duelist 1 | . . . 1 . Sentry 12 | . . . 2 10 Best Kill Streak 8 | . 4 2 8 5 Combat Bots Only 5 | . 4 2 5 4 Max Kills in Single Turn 3 | . 2 1 3 3 Gunslinging . | . . . . . Exploded 3 | . 2 . 3 1 Melee . | . . . . . Uniques/NPCs Destroyed . | . . . . . Combat | -11 -10 -10 -9 -9 -------- Run | Scr Mat Min Mat Sto Damage Taken 3140 | . 366 232 770 1772 Core 550 | . 83 39 149 279 Absorbed by Shields . | . . . . . Core Remaining (%) 75 | 100 . 51 . . Volleys Fired 136 | . 25 14 37 60 Largest 2 | . 2 2 2 2 Hottest 145 | . 70 63 95 145 Shots Fired 240 | . 41 26 73 100 Gun 135 | . 25 26 38 46 Cannon 25 | . . . . 25 Launcher 80 | . 16 . 35 29 Special . | . . . . . Kinetic 66 | . . 16 13 37 Thermal 40 | . 7 . 11 22 Explosive 62 | . 16 . 35 11 Electromagnetic 72 | . 18 10 14 30 Robot Hit Streak 20 | . 4 9 12 20 Robot Miss Streak 8 | . 4 3 8 4 Penetration Max . | . . . . . Secondary Targets 1 | . . . 1 . Max Gunslinging Chain 1 | . . . 1 . Shots Hit Robots 175 | . 20 22 57 76 Core Hits 143 | . 30 11 58 44 Critical Hits 1 | . . . 1 . Critical Kills . | . . . . . Critical Parts Destroyed . | . . . . . Melee Attacks . | . . . . . Impact . | . . . . . Slashing . | . . . . . Piercing . | . . . . . Sneak Attacks . | . . . . . Combat Hostiles . | . . . . . Follow-up Attacks . | . . . . . Damage Inflicted 5957 | . 1005 318 2654 1980 Guns 1521 | . 251 318 409 543 Cannons 411 | . . . . 411 Explosions 4025 | . 754 . 2245 1026 Melee . | . . . . . Ramming . | . . . . . Kinetic 756 | . . 223 112 421 Thermal 613 | . 87 . 120 406 Explosive 3539 | . 716 . 2245 578 Electromagnetic 1049 | . 202 95 177 575 Impact . | . . . . . Slashing . | . . . . . Piercing . | . . . . . Highest Corruption 1 | . 1 1 . . Average Corruption 1 | . 1 1 . . Corruption Purged . | . . . . . Effects 5 | . 2 3 . . Message Errors 4 | . 2 2 . . Energy Discharges 1 | . . 1 . . Overload Shots . | . . . . . Overflow Damage 116 | . 13 . 95 8 Projectiles . | . . . . . Explosions 116 | . 13 . 95 8 Melee . | . . . . . Knockbacks 1 | . . . . 1 Impact . | . . . . . Kinetic 1 | . . . . 1 Secondary . | . . . . . Self-Inflicted Damage 194 | . 54 . 89 51 Shots 16 | . 4 . 5 7 Rammed . | . . . . . Targets Rammed . | . . . . . Kicked . | . . . . . Crushed . | . . . . . Highest Temperature 336 | . 172 99 258 336 Average Temperature 67 | . 40 50 63 81 Received Heat Transfer 1056 | . 159 117 339 441 Effects 1 | . . . 1 . Interference 1 | . . . 1 . Siege Activations . | . . . . . Robots Corrupted . | . . . . . Combat Hostiles . | . . . . . Parts Fried 7 | . 2 1 . 4 Impact Corruptions . | . . . . . Robots Melted . | . . . . . Combat Hostiles . | . . . . . Parts Melted 1 | . 1 . . . Heat Transferred 946 | . 198 . 150 598 Parts Sabotaged . | . . . . . Parts Stolen . | . . . . . Parts Stripped . | . . . . . Power Chain Reactions 3 | . 1 . . 2 Missiles Intercepted . | . . . . . Alert | -11 -10 -10 -9 -9 ------- Run | Scr Mat Min Mat Sto Peak Influence 556 | . 136 79 393 556 Average Influence 157 | . 47 33 227 344 Maximum Alert Level 2 | . . . 1 2 Low Security (%) 63 | . . . . . Level 1 24 | . . . . . Level 2 12 | . . . . . Level 3 . | . . . . . Level 4 . | . . . . . Level 5 . | . . . . . High Security . | . . . . . Max Security . | . . . . . Squads Dispatched 8 | . 1 . 2 5 Investigation 4 | . 1 . 1 2 Extermination . | . . . . . Reinforcement 2 | . . . 1 1 Assault . | . . . . . Garrison 2 | . . . . 2 Intercept . | . . . . . Construction Impeded . | . . . . . Haulers Reinforced . | . . . . . Stealth | -11 -10 -10 -9 -9 --------- Run | Scr Mat Min Mat Sto Distress Signals 5 | . 1 . 2 2 Communications Jammed . | . . . . . Distress Signals . | . . . . . Times Spotted 77 | . 18 6 24 29 Peak Tracking Total 6 | . 5 3 5 6 Tactical Retreats 9 | . . 1 6 2 Traps | -11 -10 -10 -9 -9 ------- Run | Scr Mat Min Mat Sto Traps Triggered 5 | . . . . 5 Indirectly . | . . . . . Trap Hack Attempts . | . . . . . Triggered . | . . . . . Disarmed 1 | . 1 . . . Reprogrammed 1 | . . . . 1 Reused . | . . . . . Traps Extracted . | . . . . . Installed . | . . . . . Triggered 2 | . . . 2 . Machines | -11 -10 -10 -9 -9 ---------- Run | Scr Mat Min Mat Sto Machines Disabled 8 | . 4 . 1 3 Max in Single Turn 2 | . 2 . 1 2 Garrison Access 1 | . . . . 1 Machines Sabotaged . | . . . . . Garrisons Compromised . | . . . . . Overloaded Fab Kills . | . . . . . Fab Network Shutdowns . | . . . . . Hacking | -11 -10 -10 -9 -9 --------- Run | Scr Mat Min Mat Sto Machines Accessed 26 | . 10 1 3 12 Terminals 20 | . 7 1 2 10 Fabricators . | . . . . . Repair Stations 3 | . 1 . 1 1 Recycling Units 2 | . 2 . . . Scanalyzers . | . . . . . Garrison Access 1 | . . . . 1 Total Hacks 74 | . 30 2 11 31 Successful 43 | . 19 1 4 19 Failed 31 | . 11 1 7 12 Catastrophic 4 | . . . 3 1 Database Lockouts . | . . . . . Manual . | . . . . . Terminals 54 | . 21 2 6 25 Fabricators . | . . . . . Repair Stations 16 | . 6 . 5 5 Recycling Units 3 | . 3 . . . Scanalyzers . | . . . . . Garrison Access 1 | . . . . 1 Terminal Hacks 28 | . 13 1 1 13 Record 1 | . . . 1 . Part Schematic 3 | . . . . 3 Robot Analysis 1 | . 1 . . . Prototype ID Bank 2 | . 2 . . . Open Door 4 | . . . . 4 Level Access Points 1 | . . . . 1 Branch Access Points 2 | . 1 . . 1 Alert Level 3 | . 2 . . 1 Unreport Threat 2 | . 1 . . 1 Locate Traps 1 | . 1 . . . Disarm Traps 1 | . 1 . . . Reprogram Traps 1 | . . . . 1 Dispatch Records 3 | . 2 1 . . Investigation Status 1 | . 1 . . . Recall Investigation 1 | . . . . 1 Registered Components 1 | . 1 . . . Fabricator Hacks . | . . . . . Repair Station Hacks 12 | . 4 . 3 5 Scan Component 7 | . 2 . 2 3 Repair 5 | . 2 . 1 2 Recycling Unit Hacks 2 | . 2 . . . Recycle Component 1 | . 1 . . . Retrieve Components 1 | . 1 . . . Scanalyzer . | . . . . . Garrison Access Hacks 1 | . . . . 1 Seal Access 1 | . . . . 1 Unauthorized Hacks . | . . . . . Terminals . | . . . . . Fabricators . | . . . . . Repair Stations . | . . . . . Recycling Units . | . . . . . Scanalyzers . | . . . . . Garrison Access . | . . . . . Data Cores Recovered 1 | . 1 . . . Used 1 | . 1 . . . Hacking Detections 23 | . 9 1 3 10 Full Trace Events 5 | . 1 . 1 3 Feedback Events 1 | . 1 . . . Corruption 1 | . 1 . . . Feedback Blocked . | . . . . . Robot Schematics Acquired . | . . . . . Robots Built . | . . . . . Matter . | . . . . . Time . | . . . . . Total Robot Build Rating . | . . . . . Part Schematics Acquired 3 | . . . . 3 Parts Built . | . . . . . Matter . | . . . . . Time . | . . . . . Total Part Build Rating . | . . . . . Parts Repaired 5 | . 2 . 1 2 Time 130 | . 52 . 26 52 Parts Recycled 1 | . 1 . . . Recycled Matter . | . . . . . Retrieved Matter . | . . . . . Retrieved Components 10 | . 10 . . . Parts Scanalyzed . | . . . . . Part Schematics Acquired . | . . . . . Parts Damaged . | . . . . . Bothacking | -11 -10 -10 -9 -9 ------------ Run | Scr Mat Min Mat Sto Used RIF Installer . | . . . . . Robots Hacked . | . . . . . Non-combat . | . . . . . Combat . | . . . . . Robot Hacks Applied . | . . . . . Relay Couplers Released . | . . . . . Robots Rewired . | . . . . . Allies Hacked . | . . . . . Hacks Repelled . | . . . . . Allies | -11 -10 -10 -9 -9 -------- Run | Scr Mat Min Mat Sto Total Allies . | . . . . . Largest Group . | . . . . . Highest-Rated Group . | . . . . . Highest-Rated Ally . | . . . . . Total Orders . | . . . . . Ally Attacks . | . . . . . Total Damage . | . . . . . Kills . | . . . . . Allies Corrupted . | . . . . . Allies Melted . | . . . . . Intel | -11 -10 -10 -9 -9 ------- Run | Scr Mat Min Mat Sto Robot Analysis Total 1 | . 1 . . . Derelict Logs Recovered 2 | . . 2 . . Drone Launches . | . . . . . Drone Recoveries . | . . . . . Exploration | -11 -10 -10 -9 -9 ------------- Run | Scr Mat Min Mat Sto Turns Passed 3836 | 57 1309 754 627 1089 Spaces Moved 2052 | 37 798 446 285 486 Core 15 | 12 . . . 3 Treads . | . . . . . Legs 2037 | 25 798 446 285 483 Wheels . | . . . . . Hover . | . . . . . Flight . | . . . . . Fastest Speed 50 | 50 120 150 120 120 Average Speed 151 | 118 143 150 160 160 Slowest Speed 700 | 150 150 150 210 700 Overloaded Moves . | . . . . . Propulsion Burnouts . | . . . . . Robots Hopped . | . . . . . Cave-ins Triggered 1 | . . . . 1 Exploration Rate (%) 56 | 4 99 91 23 66 Regions Visited 4 Branch Regions 2 Pre-discovered Areas . | . . . . . Known Exits Taken 2 | . 1 . 1 . Unknown Exits Taken 2 | 1 . 1 . . Scrap Searched 2 | . . 2 . . Spaces Dug 4 | . . . . 4 Terrain Destroyed 323 | . 75 . 178 70 Melee . | . . . . . Projectile . | . . . . . AOE 323 | . 75 . 178 70 Actions | -11 -10 -10 -9 -9 --------- Run | Scr Mat Min Mat Sto Total 2551 | 50 921 505 378 697 Wait 242 | . 67 36 36 103 Move 2048 | 36 797 445 284 486 Hop . | . . . . . Pick Up 51 | 8 19 2 8 14 Fast Attach 7 | . 1 . 2 4 Attach 29 | 6 6 1 7 9 Detach 1 | . 1 . . . Swap 17 | . 1 4 4 8 Drop 20 | . 4 3 . 13 Fire 136 | . 25 14 37 60 Melee . | . . . . . Ram . | . . . . . Kick . | . . . . . Crush . | . . . . . Escape Stasis . | . . . . . Rewire . | . . . . . Trap . | . . . . . Miscellaneous . | . . . . . Route ------- -11/Scrapyard -10/Materials (discovered 5 exits: *Mat x3 / *Min x2) -10/Mines (discovered 2 exits: *Mat x2) -9/Materials (discovered 3 exits: *Mat / [*Min] / *Sto) -9/Storage (discovered 2 exits: *Mat / Rec) History --------- Turn | Location | Event 20 | -11/Scrapyard | Discovered new exit (range 16) 58 | -11/Scrapyard | Entered Materials 316 | -10/Materials | Build established: Mutant 317 | -10/Materials | Discovered new exit (range 8) 363 | -10/Materials | Discovered new exit (range 16) 558 | -10/Materials | Discovered new exit (range 10) 595 | -10/Materials | Identified exit to Mines 922 | -10/Materials | Discovered new exit (range 15) 979 | -10/Materials | Repaired Grenade Launcher 1007 | -10/Materials | Repaired EM Pulse Gun 1252 | -10/Materials | Discovered new exit (range 16) 1367 | -10/Materials | Entered Mines 1517 | -10/Mines | Discovered new exit (range 3) 1742 | -10/Mines | Assisted by bots powering up and referring to "LRC-V3" 1909 | -10/Mines | Learned Materials garrison access intel 2083 | -10/Mines | Discovered new exit (range 3) 2121 | -10/Mines | Entered Materials 2121 | -9/Materials | Evolved 2 slots: Power x1, Propulsion x1 2122 | -9/Materials | Identified exit to Storage 2282 | -9/Materials | Discovered new exit (range 7) 2361 | -9/Materials | Repaired Grenade Launcher 2399 | -9/Materials | Discovered new exit (range 16) 2594 | -9/Materials | Lost 4 parts (2p2n) 2748 | -9/Materials | Entered Storage 3002 | -9/Storage | Core integrity fell below 50% 3136 | -9/Storage | Garrison activated, responded to threat 3174 | -9/Storage | Lost 4 parts (1p1n2w) 3357 | -9/Storage | Identified exit to Materials 3368 | -9/Storage | Identified exit to Recycling 3488 | -9/Storage | Build established: Scavenger-Mutant 3584 | -9/Storage | Repaired Sml. Storage Unit 3611 | -9/Storage | Repaired Grenade Launcher 3835 | -9/Storage | Core integrity fell below 20% 3838 | -9/Storage | Crushed by falling debris 3838 | -9/Storage | Smashed by cave-in Last Messages --------------- 03812_ U-05 Engineer lays Concrete. 03813_ U-05 Engineer builds a Wall. 03814_ U-05 Engineer builds a Door. 03818_ U-05 Engineer builds a Wall. 03818_ U-05 Engineer builds a Door. 03825_ U-05 Engineer destroyed. 03828_ Gui. EMP Blaster destroyed. 03828_ Identified Imp. Heavy Laser. 03829_ Acquired Imp. Heavy Laser. 03837_ Heat Sink fried. 03837_ Y-45 Defender destroyed. 03838_ The unstable cave ceiling collapses. 03838_ Crushed by falling debris. [Achievement: Unlikely Earthworm] 03838_ Lgt. Ion Engine destroyed. 03838_ System corrupted by crushing effect (+1). 03838_ Imp. Heavy Laser destroyed. 03838_ System corrupted by crushing effect (+1). 03838_ Hacking Suite destroyed. 03838_ System corrupted by crushing effect (+2). Map ----- +----------------------------------------------------+ | ?????????????????????????????????????????????????# | | ?????????????????????????????????????????????????# | | ?????????????????????????????????????????????????? | | ?????????????????????????? ???????????????????### | | ?????????????????????????? ???????????????????# | | ?????????????????????????? ???????????????????# | | ?????????????????????????# ???????????????????# | | ?????????????????????????+ ??????????????????## | | ?????????????????????????# #?????????????????# | | ?????????????????????????# +??????????????????# | | ?????????????????????????# #??????????????????# " | | ?????????????????????????# #??????????????????# " | | ?????????????????????????# #??????????????????### | | ?????????????????????????+ #????????????????????? | | ?????????????????????????# #????????????????????? | | ??????????????????#+?????# #????????????????????? | | ????????????????### #????# w#????????###+##??????? | | ????????????????# ##### ########## #??????? | | ????????????????# [[ Y= #??????? | | ????????????????# %! =% [ T #??????? | | ????????????????# ##### #### ###### +??????? | | ????????????????#????# [% #?# #????######??????? | | ?????????????????????# = ### ###??????????????? | | ?????????????????????# ! [[ # #T####???????????? | | ?????????????????????# [[ # + "!!#???????????? | | ?????????????????????### @ T a# !#???????????? | | ???????????????????????###### # "!!#???????????? | | ????????????????????????????# ######???????????? | | ????????????????????????????# #?????????#######? | | ????????????????????????????# #????##???# ## | | ??????????????###???????????# ###### ####= | | ??????????????#[#???????????# # +[ ! | | ?????????????##[#???????????# # """ ###= ! | | ?????????????#T!#??????????## # """ #?# ## | | ????###########+##?????????#" # """ #?#######? | | ????# ] + #?????????#T # #???###??? | | ????# ! # #?????????#" # """ #? ! ? | | ????# # #?????????## # """ # | | ????# # #??????????# + """ # | | ????# / + #??????????# # # """ """ | | ????# ! [# ########???# # # """ """ | | ????# # # #???# # # """ """ | | ????# # # ##### ###+##### | | ????# # # !!! # # ##*# #?# ^ ?? | | ????########## # !!! #### ## # #?#+###+#### | | ?????????????# # !! + ##[# #?# + | | ?????????????# # #### ! # #?# # | | ?????????????# # [# # *##%# #?# # | | ?????????????# # ###########+###?# [# | | ????????????##%* # ## = = % #?# =%+! | +----------------------------------------------------+ Best States ------------- Heat Dissipation 28 Energy Generation 19 Energy Capacity 430 Matter Stores 300 Matter Capacity 350 Sight Range 16 Terrain Scan Density 10 Evasion (%) 40 Offensive Hacking 10 Item Schematics ----------------- Imp. Propulsion Shielding | -9/Storage | Hacked Hvy. EM Pulse Gun | -9/Storage | Hacked Imp. Medium Armor Plating | -9/Storage | Hacked Robot Schematics ------------------ None Fabricated ------------ Nothing Alien Tech Used ----------------- None Achievements -------------- GoHome() Remodeling Unlikely Earthworm Challenges ------------ None Game ------ Seed GravitonGravitonTendrils Manual? 0 Play Time 01:11:26 Cumulative 12.6 hours Start 2019.10.23 @ 05:49:08 End 2019.10.23 @ 18:55:30 Sessions 3 Manual Loads 0 Difficulty Rogue Special Mode None Game No. 15 Rogue 15 Adventurer 0 Explorer 0 Win Type - Total 0 Types 0/0/0/0/0/0/0 Lore% 13 Gallery% 14 Achievement% 15 Wizard Run 0 Options --------- ASCII 0 Keyboard 0 Movement Mouse Keybinds 0 Fullscreen 1 Font 18/SmallcapsGlow Map View 76x50 Tactical HUD 1 Map Filters NONE Filters NONE Steam 1 RUN: 0d7792b7-b9be-4184-bd7b-b10794d239ab